fUSD/lending_fUSD_20250321
["ID","MTS","AMOUNT","RATE_DAILY","PERIOD"]
[356506763,1742580651833,-500.0,0.00046994,120]
[356506764,1742580651843,-571.8,0.00046994,120]
[356506765,1742580651852,-350.0,0.00046994,14]
[356506766,1742580651861,-350.0,0.00046994,14]
[356506767,1742580651870,-1472.43,0.00046994,120]
[356506768,1742580651879,-350.0,0.00046994,14]
[356506769,1742580651889,-350.0,0.00046994,14]
[356506770,1742580651898,-350.0,0.00046994,14]
[356506771,1742580651907,-350.0,0.00046994,14]
[356506772,1742580651917,-510.76060929,0.00046994,120]
[356506773,1742580651926,-561.5,0.00046994,120]
[356506774,1742580651935,-1000.0,0.00046994,120]
[356506775,1742580651944,-500.0,0.00046994,120]
[356506776,1742580651953,-539.02,0.00046994,120]
[356506777,1742580651962,-1778.79,0.00046994,120]
[356506778,1742580651971,-500.0,0.00046994,120]
[356506779,1742580651980,-2430.57,0.00046994,120]
[356506780,1742580651989,-500.0,0.00046994,120]
[356506781,1742580651999,-664.07,0.00046994,120]
[356506782,1742580652008,-500.0,0.00046994,120]
[356506783,1742580652017,-500.0,0.00046994,120]
[356506784,1742580652027,-500.0,0.00046994,120]
[356506785,1742580652036,-500.0,0.00046994,120]
[356506786,1742580652046,-2236.96,0.00046994,120]
[356506787,1742580652055,-1127.53,0.00046994,120]
[356506788,1742580652063,-500.0,0.00046994,120]
[356506789,1742580652072,-500.0,0.00046994,120]
[356506790,1742580652081,-8275.08,0.00046994,120]
[356506791,1742580652091,-2008.57,0.00046994,120]
[356506792,1742580652100,-2008.57,0.00046994,120]
[356506793,1742580652109,-1346.7,0.00046994,120]
[356506794,1742580652118,-500.0,0.00046994,2]
[356506795,1742580652127,-500.0,0.00046994,120]
[356506796,1742580652136,-500.0,0.00046994,120]
[356506797,1742580652145,-506.92,0.00046994,120]
[356506798,1742580652154,-619.67,0.00046994,120]
[356506799,1742580652164,-511.84,0.00046994,120]
[356506800,1742580652173,-500.0,0.00046994,120]
[356506801,1742580652182,-3632.54,0.00046994,120]
[356506802,1742580652193,-500.0,0.00046994,120]
[356506803,1742580652202,-638.22,0.00046994,120]
[356506804,1742580652211,-493.85906144,0.00046994,120]
[356506805,1742580652221,-2512.07,0.00046994,120]
[356506806,1742580652229,-500.0,0.00046994,120]
[356506807,1742580652239,-868.51,0.00046994,120]
[356506808,1742580652248,-500.0,0.00046994,120]
[356506809,1742580652257,-500.0,0.00046994,120]
[356506810,1742580652267,-2060.03,0.00046994,120]
[356506811,1742580652276,-2063.99,0.00046994,120]
[356506812,1742580652285,-500.0,0.00046994,120]
[356506813,1742580652294,-500.0,0.00046994,120]
[356506814,1742580652303,-500.0,0.00046994,120]
[356506815,1742580652314,-4352.28,0.00046994,120]
[356506816,1742580652323,-500.0,0.00046994,120]
[356506817,1742580652334,-500.0,0.00046994,120]
[356506818,1742580652344,-500.0,0.00046994,120]
[356506819,1742580652354,-500.0,0.00046994,120]
[356506820,1742580652363,-500.0,0.00046994,120]
[356506821,1742580652371,-1112.83,0.00046994,120]
[356506822,1742580652380,-500.0,0.00046994,120]
[356506823,1742580652389,-500.0,0.00046994,120]
[356506824,1742580652398,-500.0,0.00046994,120]
[356506825,1742580652406,-500.0,0.00046994,120]
[356506826,1742580652415,-605.17,0.00046994,120]
[356506827,1742580652424,-500.0,0.00046994,120]
[356506828,1742580652433,-716.21,0.00046994,120]
[356506829,1742580652442,-500.0,0.00046994,120]
[356506830,1742580652451,-500.0,0.00046994,120]
[356506831,1742580652460,-500.0,0.00046994,120]
[356506832,1742580652470,-500.0,0.00046994,120]
[356506833,1742580652480,-880.63,0.00046994,120]
[356506834,1742580652493,-500.0,0.00046994,120]
[356506835,1742580652503,-6015.27,0.00046994,120]
[356506836,1742580652512,-500.0,0.00046994,120]
[356506837,1742580652521,-500.0,0.00046994,120]
[356506838,1742580652532,-500.0,0.00046994,120]
[356506839,1742580652541,-9204.53,0.00046994,120]
[356506840,1742580652550,-668.25,0.00046994,120]
[356506841,1742580652559,-500.0,0.00046994,120]
[356506842,1742580652570,-500.0,0.00046994,120]
[356506843,1742580652580,-500.0,0.00046994,120]
[356506844,1742580652589,-500.0,0.00046994,120]
[356506845,1742580652599,-500.0,0.00046994,120]
[356506846,1742580652608,-500.0,0.00046994,120]
[356506847,1742580652617,-500.0,0.00046994,120]
[356506848,1742580652626,-966.55,0.00046994,120]
[356506849,1742580652637,-711.14,0.00046994,120]
[356506850,1742580652646,-500.0,0.00046994,120]
[356506851,1742580652656,-517.01000475,0.00046994,120]
[356506852,1742580652664,-532.88901773,0.00046994,120]
[356506853,1742580652673,-500.0,0.00046994,120]
[356506854,1742580652682,-500.0,0.00046994,120]
[356506855,1742580652691,-500.0,0.00046994,120]
[356506856,1742580652700,-500.0,0.00046994,120]
[356506857,1742580652709,-500.0,0.00046994,120]
[356506858,1742580652718,-8499.51,0.00046994,120]
[356506859,1742580652727,-500.0,0.00046994,120]
[356506860,1742580652735,-500.0,0.00046995,120]
[356506861,1742580652744,-500.0,0.00046995,120]
[356506862,1742580652753,-500.0,0.00046995,120]
[356506863,1742580652763,-500.0,0.00046995,120]
[356506864,1742580652772,-500.0,0.00046995,120]
[356506865,1742580652781,-500.0,0.00046995,120]
[356506866,1742580652790,-500.0,0.00046995,120]
[356506867,1742580652799,-500.0,0.00046995,120]
[356506868,1742580652809,-500.0,0.00046995,120]
[356506869,1742580652820,-500.0,0.00046995,120]
[356506870,1742580652830,-500.0,0.00046995,120]
[356506871,1742580652840,-500.0,0.00046995,120]
[356506872,1742580652850,-500.0,0.00046995,120]
[356506873,1742580652859,-500.0,0.00046995,120]
[356506874,1742580652870,-500.0,0.00046995,120]
[356506875,1742580652880,-500.0,0.00046995,120]
[356506876,1742580652891,-500.0,0.00046995,120]
[356506877,1742580652900,-500.0,0.00046995,120]
[356506878,1742580652910,-500.0,0.00046995,120]
[356506879,1742580652919,-500.0,0.00046995,120]
[356506880,1742580652929,-500.0,0.00046995,120]
[356506881,1742580652938,-500.0,0.00046995,120]
[356506882,1742580652948,-526.54968808,0.00046995,120]
[356506883,1742580652956,-500.0,0.00046995,120]
[356506884,1742580652965,-500.0,0.00046995,120]
[356506885,1742580652975,-513.13180349,0.00046995,120]
[356506886,1742580652983,-500.0,0.00046995,120]
[356506887,1742580652993,-500.0,0.00046995,120]
[356506888,1742580653002,-504.32564691,0.00046995,120]
[356506889,1742580653011,-500.0,0.00046995,120]
[356506890,1742580653021,-500.0,0.00046995,120]
[356506891,1742580653030,-571.6396148,0.00046995,120]
[356506892,1742580653039,-500.0,0.00046995,120]
[356506893,1742580653048,-500.0,0.00046995,120]
[356506894,1742580653058,-500.0,0.00046995,120]
[356506895,1742580653067,-500.0,0.00046995,120]
[356506896,1742580653077,-1955.54,0.00046995,120]
[356506897,1742580653086,-500.0,0.00046995,120]
[356506898,1742580653095,-503.55687564,0.00046995,120]
[356506899,1742580653105,-500.0,0.00046995,120]
[356506900,1742580653113,-500.0,0.00046995,120]
[356506901,1742580653122,-500.0,0.00046995,120]
[356506902,1742580653131,-507.40224701,0.00046995,120]
[356506903,1742580653140,-513.12056971,0.00046995,120]
[356506904,1742580653149,-500.0,0.00046995,120]
[356506905,1742580653159,-454.57599216,0.00046995,120]
[356506906,1742580653167,-520.19248361,0.00046995,120]
[356506907,1742580653176,-500.0,0.00046995,120]
[356506908,1742580653185,-505.39829309,0.00046995,120]
[356506909,1742580653194,-500.0,0.00046995,120]
[356506910,1742580653203,-500.0,0.00046995,120]
[356506911,1742580653213,-542.68,0.00046995,120]
[356506912,1742580653222,-500.0,0.00046995,120]
[356506913,1742580653231,-500.0,0.00046995,120]
[356506914,1742580653241,-500.0,0.00046995,120]
[356506915,1742580653251,-500.0,0.00046995,120]
[356506916,1742580653260,-500.0,0.00046995,120]
[356506917,1742580653269,-500.0,0.00046995,120]
[356506918,1742580653278,-1215.88,0.00046995,2]
[356506919,1742580653287,-500.0,0.00046995,120]
[356506920,1742580653296,-500.0,0.00046995,120]
[356506921,1742580653305,-500.0,0.00046995,120]
[356506922,1742580653314,-500.0,0.00046995,120]
[356506923,1742580653323,-582.73,0.00046995,120]
[356506924,1742580653331,-500.0,0.00046995,120]
[356506925,1742580653341,-508.57165115,0.00046995,120]
[356506926,1742580653350,-500.0,0.00046995,120]
[356506927,1742580653359,-500.0,0.00046995,120]
[356506928,1742580653368,-500.0,0.00046995,120]
[356506929,1742580653376,-500.0,0.00046995,120]
[356506930,1742580653385,-500.0,0.00046995,120]
[356506931,1742580653395,-500.0,0.00046995,120]
[356506932,1742580653404,-500.0,0.00046995,120]
[356506933,1742580653414,-500.0,0.00046995,120]
[356506934,1742580653423,-500.0,0.00046995,120]
[356506935,1742580653432,-516.99696289,0.00046995,120]
[356506936,1742580653442,-500.0,0.00046995,120]
[356506937,1742580653451,-500.0,0.00046995,120]
[356506938,1742580653460,-510.5097648,0.00046995,120]
[356506939,1742580653469,-500.0,0.00046995,120]
[356506940,1742580653478,-500.0,0.00046995,120]
[356506941,1742580653489,-515.5909485,0.00046995,120]
[356506942,1742580653500,-500.0,0.00046995,120]
[356506943,1742580653509,-523.1425436,0.00046995,120]
[356506944,1742580653518,-524.97877871,0.00046995,120]
[356506945,1742580653527,-500.0,0.00046995,120]
[356506946,1742580653537,-500.0,0.00046995,120]
[356506947,1742580653547,-504.84506722,0.00046995,120]
[356506948,1742580653556,-516.33091585,0.00046995,120]
[356506949,1742580653568,-500.0,0.00046995,120]
[356506950,1742580653577,-504.72969986,0.00046995,120]
[356506951,1742580653587,-500.0,0.00046995,120]
[356506952,1742580653596,-483.59442916,0.00046995,120]
[356506953,1742580653606,-500.0,0.00046995,120]
[356506954,1742580653616,-500.0,0.00046995,120]
[356506955,1742580653626,-507.39726186,0.00046995,120]
[356506956,1742580653636,-513.04128028,0.00046995,120]
[356506957,1742580653645,-500.0,0.00046995,120]
[356506958,1742580653655,-527.24875989,0.00046995,120]
[356506959,1742580653664,-500.0,0.00046995,120]
[356506960,1742580653673,-500.0,0.00046995,120]
[356506961,1742580653681,-519.18906779,0.00046995,120]
[356506962,1742580653690,-500.0,0.00046995,120]
[356506963,1742580653699,-500.0,0.00046995,120]
[356506964,1742580653708,-500.0,0.00046995,120]
[356506965,1742580653717,-630.52091176,0.00046995,120]
[356506966,1742580653725,-527.16307016,0.00046995,120]
[356506967,1742580653736,-500.0,0.00046995,120]
[356506968,1742580653748,-500.0,0.00046995,120]
[356506969,1742580653757,-500.0,0.00046995,120]
[356506970,1742580653766,-516.3988181,0.00046995,120]
[356506971,1742580653775,-500.0,0.00046995,120]
[356506972,1742580653784,-500.0,0.00046995,120]
[356506973,1742580653793,-500.0,0.00046995,120]
[356506974,1742580653801,-510.42035883,0.00046995,120]
[356506975,1742580653810,-500.0,0.00046995,120]
[356506976,1742580653819,-519.7092391,0.00046995,120]
[356506977,1742580653828,-504.0635893,0.00046995,7]
[356506978,1742580653837,-500.0,0.00046995,120]
[356506979,1742580653846,-500.0,0.00046995,120]
[356506980,1742580653856,-500.0,0.00046995,120]
[356506981,1742580653864,-526.05414562,0.00046995,120]
[356506982,1742580653873,-500.0,0.00046995,120]
[356506983,1742580653883,-544.73,0.00046995,120]
[356506984,1742580653892,-500.0,0.00046995,120]
[356506985,1742580653902,-500.0,0.00046995,120]
[356506986,1742580653911,-500.0,0.00046995,120]
[356506987,1742580653921,-500.0,0.00046995,120]
[356506988,1742580653931,-500.0,0.00046995,120]
[356506989,1742580653941,-500.0,0.00046995,120]
[356506990,1742580653950,-500.0,0.00046995,120]
[356506991,1742580653960,-510.00521863,0.00046995,120]
[356506992,1742580653970,-500.0,0.00046995,120]
[356506993,1742580653979,-503.11700791,0.00046995,120]
[356506994,1742580653990,-500.0,0.00046995,120]
[356506995,1742580653999,-500.0,0.00046995,120]
[356506996,1742580654009,-500.88070292,0.00046995,120]
[356506997,1742580654018,-500.0,0.00046995,120]
[356506998,1742580654027,-500.0,0.00046995,120]
[356506999,1742580654036,-500.0,0.00046995,120]
[356507000,1742580654046,-500.0,0.00046995,120]
[356507001,1742580654056,-500.0,0.00046995,120]
[356507002,1742580654065,-516.31218798,0.00046995,120]
[356507003,1742580654074,-500.0,0.00046995,120]
[356507004,1742580654084,-500.0,0.00046995,120]
[356507005,1742580654093,-500.0,0.00046995,120]
[356507006,1742580654102,-500.0,0.00046995,120]
[356507007,1742580654111,-200.0,0.00046995,7]
[356507008,1742580654120,-500.0,0.00046995,120]
[356507009,1742580654130,-500.0,0.00046995,120]
[356507010,1742580654139,-500.0,0.00046995,120]
[356507011,1742580654148,-518.8333754,0.00046995,120]
[356507012,1742580654157,-500.0,0.00046995,120]
[356507013,1742580654166,-500.0,0.00046995,120]
[356507014,1742580654175,-500.0,0.00046995,120]
[356507015,1742580654184,-500.0,0.00046995,120]
[356507016,1742580654194,-500.0,0.00046995,120]
[356507017,1742580654203,-455.04589592,0.00046995,120]
[356507018,1742580654213,-500.0,0.00046995,120]
[356507019,1742580654222,-500.0,0.00046995,5]
[356507020,1742580654231,-500.0,0.00046995,120]
[356507021,1742580654242,-500.0,0.00046995,120]
[356507022,1742580654251,-509.89350126,0.00046995,120]
[356507023,1742580654260,-500.0,0.00046995,120]
[356507024,1742580654269,-500.0,0.00046995,120]
[356507025,1742580654278,-500.0,0.00046995,120]
[356507026,1742580654287,-500.0,0.00046995,120]
[356507027,1742580654298,-500.0,0.00046995,120]
[356507028,1742580654307,-870.81,0.00046995,120]
[356507029,1742580654316,-500.0,0.00046995,120]
[356507030,1742580654325,-500.0,0.00046995,120]
[356507031,1742580654334,-500.0,0.00046995,120]
[356507032,1742580654344,-500.0,0.00046995,120]
[356507033,1742580654352,-500.0,0.00046995,120]
[356507034,1742580654362,-515.24347886,0.00046995,120]
[356507035,1742580654371,-500.0,0.00046995,120]
[356507036,1742580654381,-517.94617072,0.00046995,120]
[356507037,1742580654539,-500.0,0.00046995,120]
[356507038,1742580654549,-500.0,0.00046995,120]
[356507039,1742580654559,-500.0,0.00046995,120]
[356507040,1742580654569,-500.0,0.00046995,120]
[356507041,1742580654579,-500.0,0.00046995,120]
[356507042,1742580654588,-521.44524299,0.00046995,120]
[356507043,1742580654597,-500.0,0.00046995,120]
[356507044,1742580654606,-329.80905639,0.00046995,120]
[356507045,1742580654615,-506.08291631,0.00046995,120]
[356507046,1742580654624,-500.0,0.00046995,120]
[356507047,1742580654633,-500.0,0.00046995,120]
[356507048,1742580654642,-500.0,0.00046995,120]
[356507049,1742580654652,-500.0,0.00046995,120]
[356507050,1742580654661,-570.62,0.00046995,120]
[356507051,1742580654670,-505.11967484,0.00046995,120]
[356507052,1742580654679,-500.0,0.00046995,120]
[356507053,1742580654688,-350.0,0.00046995,2]
[356507054,1742580654697,-500.0,0.00046995,120]
[356507055,1742580654707,-1005.39108717,0.00046995,120]
[356507056,1742580654717,-500.0,0.00046995,120]
[356507057,1742580654727,-500.0,0.00046995,120]
[356507058,1742580654740,-500.0,0.00046995,120]
[356507059,1742580654749,-500.0,0.00046995,120]
[356507060,1742580654759,-500.0,0.00046995,120]
[356507061,1742580654768,-500.0,0.00046995,120]
[356507062,1742580654778,-500.0,0.00046995,120]
[356507063,1742580654787,-517.20118304,0.00046995,120]
[356507064,1742580654797,-562.71,0.00046995,120]
[356507065,1742580654807,-440.70698612,0.00046995,120]
[356507066,1742580654817,-500.0,0.00046995,120]
[356507067,1742580654826,-513.81597945,0.00046995,120]
[356507068,1742580654835,-510.59958975,0.00046995,120]
[356507069,1742580654845,-500.0,0.00046995,120]
[356507070,1742580654855,-500.0,0.00046995,120]
[356507071,1742580654864,-500.0,0.00046995,120]
[356507072,1742580654874,-517.87245466,0.00046995,120]
[356507073,1742580654888,-348.13527712,0.00046995,120]
[356507074,1742580654897,-500.0,0.00046995,120]
[356507075,1742580654908,-500.0,0.00046995,120]
[356507076,1742580654917,-610.66,0.00046995,120]
[356507077,1742580654927,-504.34328036,0.00046995,120]
[356507078,1742580654937,-500.0,0.00046995,120]
[356507079,1742580654946,-732.78,0.00046995,120]
[356507080,1742580654955,-500.0,0.00046995,120]
[356507081,1742580654965,-500.0,0.00046995,120]
[356507082,1742580654975,-500.0,0.00046995,120]
[356507083,1742580654986,-500.0,0.00046995,120]
[356507084,1742580654998,-518.16979579,0.00046995,120]
[356507085,1742580655009,-500.0,0.00046995,120]
[356507086,1742580655019,-261.25671359,0.00046995,120]
[356507087,1742580655028,-548.53627813,0.00046995,120]
[356507088,1742580655038,-529.64,0.00046995,120]
[356507089,1742580655048,-3005.22,0.00046995,120]
[356507090,1742580655058,-500.0,0.00046995,120]
[356507091,1742580655067,-500.0,0.00046995,120]
[356507092,1742580655077,-520.6182042,0.00046995,120]
[356507093,1742580655086,-500.0,0.00046995,120]
[356507094,1742580655097,-500.0,0.00046995,120]
[356507095,1742580655106,-533.18748131,0.00046995,120]
[356507096,1742580655116,-300.0,0.00046995,2]
[356507097,1742580655126,-573.71,0.00046995,120]
[356507098,1742580655135,-515.1185517,0.00046995,120]
[356507099,1742580655145,-1873.33,0.00046995,120]
[356507100,1742580655155,-500.0,0.00046995,120]
[356507101,1742580655164,-330.76467182,0.00046995,120]
[356507102,1742580655174,-260.75180976,0.00046995,120]
[356507103,1742580655183,-525.52531196,0.00046995,120]
[356507104,1742580655192,-500.0,0.00046995,120]
[356507105,1742580655201,-500.0,0.00046995,120]
[356507106,1742580655210,-500.0,0.00046995,120]
[356507107,1742580655219,-500.0,0.00046995,120]
[356507108,1742580655228,-500.0,0.00046995,120]
[356507109,1742580655238,-500.0,0.00046995,120]
[356507110,1742580655247,-3200.21,0.00046995,120]
[356507111,1742580655256,-500.0,0.00046995,120]
[356507112,1742580655265,-500.0,0.00046995,120]
[356507113,1742580655274,-388.39513628,0.00046995,120]
[356507114,1742580655283,-500.0,0.00046995,120]
[356507115,1742580655293,-236.54586348,0.00046995,120]
[356507116,1742580655303,-509.97383776,0.00046995,120]
[356507117,1742580655312,-500.0,0.00046995,120]
[356507118,1742580655321,-1252.78,0.00046995,10]
[356507119,1742580655331,-500.0,0.00046995,120]
[356507120,1742580655339,-404.83871999,0.00046995,120]
[356507121,1742580655349,-500.0,0.00046995,120]
[356507122,1742580655358,-500.0,0.00046995,120]
[356507123,1742580655367,-500.0,0.00046995,120]
[356507124,1742580655376,-546.71,0.00046995,120]
[356507125,1742580655386,-500.0,0.00046995,120]
[356507126,1742580655395,-500.0,0.00046995,120]
[356507127,1742580655404,-500.0,0.00046995,120]
[356507128,1742580655413,-300.0,0.00046995,120]
[356507129,1742580655422,-500.0,0.00046995,120]
[356507130,1742580655431,-568.79,0.00046995,120]
[356507131,1742580655441,-500.0,0.00046995,120]
[356507132,1742580655450,-500.0,0.00046995,120]
[356507133,1742580655461,-500.0,0.00046995,120]
[356507134,1742580655471,-500.0,0.00046995,120]
[356507135,1742580655480,-500.0,0.00046995,120]
[356507136,1742580655491,-500.0,0.00046995,120]
[356507137,1742580655502,-500.0,0.00046995,120]
[356507138,1742580655511,-521.71961955,0.00046995,120]
[356507139,1742580655520,-500.0,0.00046995,120]
[356507140,1742580655531,-500.0,0.00046995,120]
[356507141,1742580655541,-562.2,0.00046995,120]
[356507142,1742580655550,-500.0,0.00046995,120]
[356507143,1742580655559,-500.0,0.00046995,2]
[356507144,1742580655569,-500.0,0.00046995,120]
[356507145,1742580655579,-500.0,0.00046995,120]
[356507146,1742580655589,-500.0,0.00046995,120]
[356507147,1742580655598,-500.0,0.00046995,120]
[356507148,1742580655608,-500.0,0.00046995,120]
[356507149,1742580655617,-500.0,0.00046995,120]
[356507150,1742580655627,-500.0,0.00046995,120]
[356507151,1742580655636,-500.0,0.00046995,120]
[356507152,1742580655646,-500.0,0.00046995,120]
[356507153,1742580655657,-500.0,0.00046995,120]
[356507154,1742580655667,-500.0,0.00046995,120]
[356507155,1742580655676,-500.0,0.00046995,120]
[356507156,1742580655686,-500.0,0.00046995,120]
[356507157,1742580655696,-500.0,0.00046995,120]
[356507158,1742580655705,-515.16,0.00046995,120]
[356507159,1742580655715,-350.0,0.00046995,14]
[356507160,1742580655724,-350.0,0.00046995,14]
[356507161,1742580655733,-500.0,0.00046995,120]
[356507162,1742580655744,-500.0,0.00046995,120]
[356507163,1742580655753,-350.0,0.00046995,14]
[356507164,1742580655762,-350.0,0.00046995,14]
[356507165,1742580655772,-500.0,0.00046995,120]
[356507166,1742580655781,-500.0,0.00046995,120]
[356507167,1742580655791,-500.0,0.00046995,120]
[356507168,1742580655800,-500.0,0.00046995,120]
[356507169,1742580655810,-500.0,0.00046995,120]
[356507170,1742580655819,-500.0,0.00046995,120]
[356507171,1742580655829,-500.0,0.00046995,120]
[356507172,1742580655839,-500.0,0.00046995,120]
[356507173,1742580655848,-500.0,0.00046995,120]
[356507174,1742580655857,-666.66666,0.00046995,81]
[356507175,1742580655866,-509.1083055,0.00046995,120]
[356507176,1742580655876,-500.0,0.00046995,120]
[356507177,1742580655885,-500.0,0.00046995,120]
[356507178,1742580655895,-500.0,0.00046995,120]
[356507179,1742580655905,-500.0,0.00046995,120]
[356507180,1742580655914,-521.19657308,0.00046995,120]
[356507181,1742580655923,-500.0,0.00046995,120]
[356507182,1742580655932,-500.0,0.00046995,120]
[356507183,1742580655942,-500.0,0.00046995,120]
[356507184,1742580655952,-500.0,0.00046995,120]
[356507185,1742580655961,-500.0,0.00046995,120]
[356507186,1742580655971,-540.21,0.00046995,120]
[356507187,1742580655981,-500.0,0.00046995,120]
[356507188,1742580655992,-500.0,0.00046995,120]
[356507189,1742580656002,-500.0,0.00046995,2]
[356507190,1742580656011,-500.0,0.00046995,120]
[356507191,1742580656021,-500.0,0.00046995,120]
[356507192,1742580656031,-548.96,0.00046995,120]
[356507193,1742580656040,-936.57,0.00046995,120]
[356507194,1742580656051,-500.0,0.00046995,120]
[356507195,1742580656060,-500.0,0.00046995,120]
[356507196,1742580656070,-500.0,0.00046995,120]
[356507197,1742580656079,-500.0,0.00046995,120]
[356507198,1742580656091,-500.0,0.00046995,120]
[356507199,1742580656101,-500.0,0.00046995,120]
[356507200,1742580656110,-504.13542143,0.00046995,120]
[356507201,1742580656120,-500.0,0.00046995,120]
[356507202,1742580656130,-528.19163917,0.00046995,120]
[356507203,1742580656141,-500.0,0.00046995,120]
[356507204,1742580656151,-500.0,0.00046995,120]
[356507205,1742580656160,-500.0,0.00046995,120]
[356507206,1742580656170,-500.0,0.00046995,120]
[356507207,1742580656180,-500.0,0.00046995,120]
[356507208,1742580656189,-500.0,0.00046995,120]
[356507209,1742580656199,-500.0,0.00046995,120]
[356507210,1742580656208,-500.0,0.00046995,120]
[356507211,1742580656218,-500.0,0.00046995,120]
[356507212,1742580656227,-500.0,0.00046995,120]
[356507213,1742580656240,-500.0,0.00046995,120]
[356507214,1742580656250,-500.0,0.00046995,120]
[356507215,1742580656260,-500.0,0.00046995,120]
[356507216,1742580656270,-500.0,0.00046995,120]
[356507217,1742580656279,-500.0,0.00046995,120]
[356507218,1742580656289,-500.0,0.00046995,120]
[356507219,1742580656301,-500.0,0.00046995,120]
[356507220,1742580656310,-635.51651689,0.00046995,120]
[356507221,1742580656319,-500.0,0.00046995,120]
[356507222,1742580656329,-500.0,0.00046995,120]
[356507223,1742580656339,-501.57413135,0.00046995,120]
[356507224,1742580656349,-500.0,0.00046995,120]
[356507225,1742580656359,-500.0,0.00046995,120]
[356507226,1742580656368,-500.0,0.00046995,120]
[356507227,1742580656378,-500.0,0.00046995,120]
[356507228,1742580656387,-1322.94,0.00046995,120]
[356507229,1742580656397,-500.0,0.00046995,120]
[356507230,1742580656407,-500.0,0.00046995,120]
[356507231,1742580656416,-500.0,0.00046995,120]
[356507232,1742580656425,-500.0,0.00046995,120]
[356507233,1742580656435,-500.0,0.00046995,120]
[356507234,1742580656444,-500.0,0.00046995,120]
[356507235,1742580656454,-505.43048761,0.00046995,120]
[356507236,1742580656463,-500.0,0.00046995,120]
[356507237,1742580656472,-500.0,0.00046995,120]
[356507238,1742580656482,-500.0,0.00046995,120]
[356507239,1742580656493,-501.70282563,0.00046995,120]
[356507240,1742580656503,-500.0,0.00046995,120]
[356507241,1742580656512,-500.0,0.00046995,120]
[356507242,1742580656522,-500.0,0.00046995,120]
[356507243,1742580656532,-500.0,0.00046995,120]
[356507244,1742580656541,-511.4588015,0.00046995,120]
[356507245,1742580656551,-500.0,0.00046995,120]
[356507246,1742580656561,-500.0,0.00046995,120]
[356507247,1742580656572,-500.0,0.00046995,120]
[356507248,1742580656582,-500.0,0.00046995,120]
[356507249,1742580656591,-500.0,0.00046995,120]
[356507250,1742580656601,-1610.0,0.00046995,2]
[356507251,1742580656610,-500.7878585,0.00046996,120]
[356507252,1742580656619,-505.75372338,0.00046996,120]
[356507253,1742580656628,-501.67712812,0.00046996,120]
[356507254,1742580656637,-356.70794841,0.00046996,120]
[356507255,1742580656646,-376.7681102,0.00046996,120]
[356507256,1742580656656,-503.13117731,0.00046996,120]
[356507257,1742580656665,-505.57792308,0.00046996,120]
[356507258,1742580656674,-333.10694701,0.00046996,120]
[356507259,1742580656683,-501.80885024,0.00046996,120]
[356507260,1742580656692,-501.58530739,0.00046996,120]
[356507261,1742580656701,-500.0,0.00046996,120]
[356507262,1742580656711,-501.36613995,0.00046996,120]